[Event "IIFL Wealth 4th Mumbai Open"]
[Site "Mumbai"]
[Date "2019.01.04"]
[Round "6"]
[White "Sa, Kannan"]
[Black "Shivasubramanian, R."]
[Result "1-0"]
[ECO "A00"]
[WhiteElo "2069"]
[BlackElo "1738"]
[Annotator "NA"]
[PlyCount "75"]
[EventDate "2018.12.30"]
[EventType "swiss"]
[EventCountry "IND"]
[SourceTitle "playchess.com"]
[Source "ChessBase"]
[SourceQuality "1"]
[TimeControl "40/5400+30:1800+30"]

1. Nc3 {[%emt 0:07:05]} d5 {[%emt 0:00:10]} 2. d4 {[%emt 0:00:07]} Nf6 {[%emt 0:00:54]} 3. Bf4 {[%emt 0:00:18]} c6 {[%emt 0:01:17]} 4. e3 {[%emt 0:01:31]} Bf5 {[%emt 0:02:42]} 5. Bd3 {[%emt 0:00:28]} e6 {[%emt 0:02:16]} 6. Nge2 {[%emt 0:02:44]} h5 {[%emt 0:16:40]} 7. Bxf5 {[%emt 0:12:08]} exf5 {[%emt 0:00:04]} 8. Qd3 {[%emt 0:00:13]} g6 {[%emt 0:02:53]} 9. O-O {[%emt 0:00:50]} Bd6 {[%emt 0:07:29]} 10. f3 {[%emt 0:03:12]} Bxf4 {[%emt 0:07:05]} 11. Nxf4 {[%emt 0:00:05]} Qc7 {[%emt 0:02:09]} 12. Nh3 {[%emt 0:04:06]} Nbd7 {[%emt 0:14:44]} 13. e4 {[%emt 0:02:59]} O-O-O {[%emt 0:01:04]} 14. e5 {[%emt 0:06:34]} Nh7 {[%emt 0:02:21]} 15. f4 {[%emt 0:06:11]} Ndf8 {[%emt 0:00:45]} 16. b4 {[%emt 0:01:31]} Ne6 {[%emt 0:00:44]} 17. Ne2 {[%emt 0:01:03]} Nhf8 18. a4 {[%emt 0:03:01]} Nd7 {[%emt 0:05:33]} 19. a5 {[%emt 0:02:00]} a6 {[%emt 0:01:41]} 20. Nc3 {[%emt 0:01:32]} f6 {[%emt 0:07:05]} 21. Ra3 {[%emt 0:01:50]} Kb8 {[%emt 0:01:29]} 22. Na4 {[%emt 0:01:47]} g5 {[%emt 0:01:53]} 23. Nc5 {[%emt 0:01:32]} Ndxc5 {[%emt 0:00:22]} 24. bxc5 {[%emt 0:00:27]} g4 {[%emt 0:03:07]} 25. Nf2 {[%emt 0:06:23]} Nxf4 {[%emt 0:00:06]} 26. Qe3 {[%emt 0:00:03]} fxe5 {[%emt 0:00:04]} 27. dxe5 {[%emt 0:00:17]} Ne6 {[%emt 0:00:38]} 28. Nd3 {[%emt 0:00:02]} d4 {[%emt 0:03:19]} 29. Qe2 {[%emt 0:01:46]} Rhf8 {[%emt 0:03:30]} 30. Rb1 {[%emt 0:00:55]} Rf7 {[%emt 0:02:25]} 31. Rb6 {[%emt 0:04:19]} Ka7 {[%emt 0:01:29]} 32. Rab3 {[%emt 0:01:12]} Qc8 {[%emt 0:00:09]} 33. Nb4 {[%emt 0:01:16]} Nxc5 {[%emt 0:00:42]} 34. Qc4 {[%emt 0:00:18]} Nxb3 {[%emt 0:03:37]} 35. Qxf7 {[%emt 0:02:28]} Rd7 {[%emt 0:04:39]} 36. Qxb3 {[%emt 0:01:51]} c5 {[%emt 0:00:04]} 37. Qc4 {[%emt 0:00:39]} d3 {[%emt 0:00:36]} 38. Nxd3 {[%emt 0:00:24]} 1-0

[Event "IIFL Wealth 4th Mumbai Open"]
[Site "Mumbai"]
[Date "2019.01.04"]
[Round "6"]
[White "Raghav, Srivathsav V"]
[Black "Pingale Shivraj"]
[Result "1-0"]
[ECO "C00"]
[WhiteElo "2056"]
[BlackElo "1580"]
[Annotator "NA"]
[PlyCount "69"]
[EventDate "2018.12.30"]
[EventType "swiss"]
[EventCountry "IND"]
[SourceTitle "playchess.com"]
[Source "ChessBase"]
[SourceQuality "1"]
[TimeControl "40/5400+30:1800+30"]

1. e4 {[%emt 0:02:06]} e6 {[%emt 0:00:00]} 2. b3 {[%emt 0:00:07]} d5 {[%emt 0:00:00]} 3. Bb2 {[%emt 0:00:06]} c5 {[%emt 0:01:08]} 4. g3 {[%emt 0:01:04]} Nc6 {[%emt 0:01:31]} 5. Bg2 {[%emt 0:00:06]} dxe4 {[%emt 0:01:36]} 6. Bxe4 {[%emt 0:00:16]} Nf6 {[%emt 0:00:13]} 7. Bg2 {[%emt 0:00:06]} Be7 {[%emt 0:00:11]} 8. Ne2 {[%emt 0:00:16]} O-O {[%emt 0:00:16]} 9. O-O {[%emt 0:01:15]} Qc7 {[%emt 0:03:03]} 10. Nbc3 {[%emt 0:00:51]} a6 {[%emt 0:01:30]} 11. a4 {[%emt 0:00:31]} e5 {[%emt 0:01:23]} 12. h3 {[%emt 0:00:38]} Be6 {[%emt 0:02:11]} 13. g4 {[%emt 0:02:03]} Qd7 {[%emt 0:04:23]} 14. f4 {[%emt 0:04:08]} exf4 {[%emt 0:03:15]} 15. Nxf4 {[%emt 0:00:18]} Nb4 {[%emt 0:02:24]} 16. g5 {[%emt 0:07:32]} Nfd5 {[%emt 0:02:43]} 17. Ncxd5 {[%emt 0:00:45]} Bxd5 {[%emt 0:02:05]} 18. Nxd5 {[%emt 0:00:15]} Nxd5 {[%emt 0:01:24]} 19. Qh5 {[%emt 0:00:59]} f5 {[%emt 0:03:35]} 20. Rae1 {[%emt 0:03:53]} Nb4 {[%emt 0:09:21]} 21. Bc3 Rad8 {[%emt 0:06:35]} 22. Re5 {[%emt 0:23:58]} Bd6 {[%emt 0:06:56]} 23. Re2 {[%emt 0:02:23]} Be7 {[%emt 0:17:08]} 24. Rf4 Bd6 {[%emt 0:05:20]} 25. Rh4 {[%emt 0:08:08]} g6 {[%emt 0:00:20]} 26. Qh6 {[%emt 0:00:24]} Qf7 {[%emt 0:02:36]} 27. Re6 {[%emt 0:09:22]} Bg3 {[%emt 0:04:17]} 28. Rf6 {[%emt 0:01:07]} Bxh4 {[%emt 0:03:50]} 29. Rxf7 {[%emt 0:00:09]} Rxf7 {[%emt 0:00:07]} 30. Qxh4 {[%emt 0:00:16]} Nd5 {[%emt 0:02:24]} 31. Qc4 {[%emt 0:01:04]} Nxc3 {[%emt 0:01:20]} 32. dxc3 {[%emt 0:00:09]} Kf8 {[%emt 0:00:15]} 33. Qxc5+ {[%emt 0:00:36]} Re7 {[%emt 0:00:20]} 34. Bd5 {[%emt 0:00:39]} b6 {[%emt 0:01:17]} 35. Qd4 1-0

[Event "IIFL Wealth 4th Mumbai Open"]
[Site "Mumbai"]
[Date "2019.01.04"]
[Round "6"]
[White "Samrat, Ghorai"]
[Black "Aditya, Ramanathan"]
[Result "1-0"]
[ECO "C45"]
[WhiteElo "1984"]
[BlackElo "1493"]
[Annotator "NA"]
[PlyCount "83"]
[EventDate "2018.12.30"]
[EventType "swiss"]
[EventCountry "IND"]
[SourceTitle "playchess.com"]
[Source "ChessBase"]
[SourceQuality "1"]
[TimeControl "40/5400+30:1800+30"]

1. e4 {[%emt 0:00:00]} e5 {[%emt 0:00:00]} 2. Nf3 {[%emt 0:00:00]} Nc6 {[%emt 0:00:00]} 3. d4 {[%emt 0:00:12]} exd4 {[%emt 0:00:00]} 4. Nxd4 {[%emt 0:00:05]} Bc5 {[%emt 0:02:58]} 5. Be3 {[%emt 0:00:11]} Bxd4 {[%emt 0:01:22]} 6. Bxd4 {[%emt 0:00:50]} Nf6 {[%emt 0:00:12]} 7. Nc3 {[%emt 0:01:34]} Nxd4 {[%emt 0:02:17]} 8. Qxd4 {[%emt 0:00:10]} d6 {[%emt 0:00:13]} 9. Bb5+ {[%emt 0:02:48]} Bd7 {[%emt 0:01:51]} 10. O-O-O {[%emt 0:35:05]} Bxb5 {[%emt 0:03:09]} 11. Nxb5 {[%emt 0:03:31]} a6 {[%emt 0:00:59]} 12. Nc3 {[%emt 0:03:01]} O-O {[%emt 0:02:05]} 13. f4 {[%emt 0:05:04]} Re8 {[%emt 0:01:35]} 14. Rhe1 {[%emt 0:01:16]} b5 {[%emt 0:06:05]} 15. h3 {[%emt 0:10:08]} Nh5 {[%emt 0:15:20]} 16. Qf2 {[%emt 0:01:31]} b4 {[%emt 0:02:40]} 17. Nd5 {[%emt 0:00:41]} Nf6 {[%emt 0:00:22]} 18. e5 {[%emt 0:17:18]} Nxd5 {[%emt 0:02:41]} 19. Rxd5 {[%emt 0:00:31]} Qe7 {[%emt 0:02:28]} 20. Qd2 {[%emt 0:04:43]} a5 {[%emt 0:02:50]} 21. g3 {[%emt 0:07:01]} Kf8 {[%emt 0:04:19]} 22. Qd3 {[%emt 0:02:34]} Kg8 {[%emt 0:01:36]} 23. Qf3 {[%emt 0:01:26]} c6 {[%emt 0:03:06]} 24. Rdd1 {[%emt 0:00:09]} d5 {[%emt 0:02:26]} 25. f5 {[%emt 0:00:18]} Qg5+ {[%emt 0:01:02]} 26. Kb1 {[%emt 0:00:10]} g6 {[%emt 0:02:47]} 27. g4 {[%emt 0:00:30]} a4 {[%emt 0:01:44]} 28. Rd4 {[%emt 0:01:28]} Qh4 {[%emt 0:01:48]} 29. Re2 {[%emt 0:00:45]} a3 {[%emt 0:02:48]} 30. Rxb4 {[%emt 0:00:33]} axb2 {[%emt 0:01:52]} 31. Kxb2 {[%emt 0:00:56]} Rab8 {[%emt 0:01:43]} 32. Rb3 {[%emt 0:00:18]} Qe7 {[%emt 0:02:28]} 33. f6 {[%emt 0:00:23]} Qc5 {[%emt 0:00:43]} 34. Qf4 {[%emt 0:00:47]} Rxb3+ {[%emt 0:02:25]} 35. cxb3 {[%emt 0:00:09]} Ra8 {[%emt 0:03:38]} 36. e6 {[%emt 0:00:26]} fxe6 {[%emt 0:02:28]} 37. f7+ {[%emt 0:01:12]} Kf8 {[%emt 0:01:14]} 38. Rf2 {[%emt 0:00:04]} g5 {[%emt 0:01:02]} 39. Qf6 {[%emt 0:00:09]} Rxa2+ {[%emt 0:00:53]} 40. Kxa2 {[%emt 0:00:00]} Qa7+ {[%emt 0:00:00]} 41. Kb2 {[%emt 0:00:46]} Qe7 {[%emt 0:00:19]} 42. Qh8# {[%emt 0:00:06]} 1-0

[Event "IIFL Wealth 4th Mumbai Open"]
[Site "Mumbai"]
[Date "2019.01.04"]
[Round "6"]
[White "Kothari, Swapnil"]
[Black "Bharadia Yash"]
[Result "1-0"]
[ECO "E20"]
[WhiteElo "1870"]
[BlackElo "1584"]
[Annotator "NA"]
[PlyCount "73"]
[EventDate "2018.12.30"]
[EventType "swiss"]
[EventCountry "IND"]
[SourceTitle "playchess.com"]
[Source "ChessBase"]
[SourceQuality "1"]
[TimeControl "40/5400+30:1800+30"]

1. d4 {[%emt 0:00:00]} Nf6 {[%emt 0:00:00]} 2. c4 {[%emt 0:00:00]} e6 {[%emt 0:00:00]} 3. Nc3 {[%emt 0:00:00]} Bb4 {[%emt 0:00:00]} 4. Bd2 {[%emt 0:00:00]} O-O {[%emt 0:01:23]} 5. Nf3 {[%emt 0:00:00]} d5 {[%emt 0:00:16]} 6. e3 {[%emt 0:01:16]} c5 {[%emt 0:00:30]} 7. a3 {[%emt 0:00:21]} Bxc3 {[%emt 0:00:09]} 8. Bxc3 {[%emt 0:00:12]} Ne4 {[%emt 0:00:25]} 9. Qc2 {[%emt 0:00:14]} Nc6 {[%emt 0:02:00]} 10. Bd3 {[%emt 0:01:51]} f5 {[%emt 0:00:46]} 11. O-O {[%emt 0:03:17]} b6 {[%emt 0:00:28]} 12. Rfd1 {[%emt 0:01:50]} Bb7 {[%emt 0:02:31]} 13. dxc5 {[%emt 0:03:33]} bxc5 {[%emt 0:00:25]} 14. cxd5 {[%emt 0:02:14]} exd5 {[%emt 0:00:16]} 15. Qb3 {[%emt 0:33:07]} Nxc3 {[%emt 0:03:31]} 16. Qxc3 {[%emt 0:02:51]} Qb6 {[%emt 0:03:14]} 17. Rac1 {[%emt 0:04:22]} c4 {[%emt 0:00:57]} 18. Be2 {[%emt 0:03:34]} Na5 {[%emt 0:01:09]} 19. Rc2 {[%emt 0:04:31]} Kh8 {[%emt 0:01:01]} 20. Rd4 {[%emt 0:01:03]} Nb3 {[%emt 0:00:53]} 21. Rh4 {[%emt 0:00:39]} d4 {[%emt 0:03:18]} 22. exd4 {[%emt 0:02:22]} Be4 {[%emt 0:00:46]} 23. Ng5 {[%emt 0:00:14]} h6 {[%emt 0:04:17]} 24. Nxe4 {[%emt 0:00:48]} fxe4 {[%emt 0:05:41]} 25. Rxe4 {[%emt 0:03:25]} Rae8 {[%emt 0:04:54]} 26. Rxe8 {[%emt 0:08:38]} Rxe8 {[%emt 0:00:22]} 27. Bxc4 {[%emt 0:00:13]} Nxd4 {[%emt 0:03:11]} 28. Rc1 {[%emt 0:02:02]} Re2 {[%emt 0:13:11]} 29. Rd1 {[%emt 0:03:50]} Re4 {[%emt 0:00:57]} 30. Bf1 {[%emt 0:03:28]} Qd8 {[%emt 0:11:54]} 31. Qd3 {[%emt 0:05:06]} Qe7 {[%emt 0:06:25]} 32. Rc1 {[%emt 0:00:17]} g6 {[%emt 0:12:14]} 33. h3 {[%emt 0:03:56]} Kh7 {[%emt 0:00:53]} 34. Qg3 {[%emt 0:01:09]} Re5 {[%emt 0:02:18]} 35. Bd3 {[%emt 0:02:03]} Rg5 {[%emt 0:01:41]} 36. Rc7 {[%emt 0:00:41]} Nf3+ {[%emt 0:00:54]} 37. Kh1 {[%emt 0:00:00]} 1-0

[Event "IIFL Wealth 4th Mumbai Open"]
[Site "Mumbai"]
[Date "2019.01.04"]
[Round "6"]
[White "Aditya, Varun Gampa"]
[Black "Vahdatian, Davood"]
[Result "1/2-1/2"]
[ECO "B90"]
[WhiteElo "1809"]
[BlackElo "2036"]
[Annotator "NA"]
[PlyCount "67"]
[EventDate "2018.12.30"]
[EventType "swiss"]
[EventCountry "IND"]
[SourceTitle "playchess.com"]
[Source "ChessBase"]
[SourceQuality "1"]
[TimeControl "40/5400+30:1800+30"]

1. e4 {[%emt 0:00:00]} c5 {[%emt 0:01:01]} 2. Nf3 {[%emt 0:00:00]} d6 {[%emt 0:01:08]} 3. d4 {[%emt 0:00:18]} cxd4 {[%emt 0:00:16]} 4. Nxd4 {[%emt 0:00:13]} Nf6 {[%emt 0:00:41]} 5. Nc3 {[%emt 0:00:14]} a6 {[%emt 0:01:16]} 6. h3 {[%emt 0:02:24]} e5 {[%emt 0:01:49]} 7. Nde2 {[%emt 0:00:03]} h5 {[%emt 0:00:25]} 8. Bg5 {[%emt 0:00:27]} Be6 {[%emt 0:00:10]} 9. Bxf6 {[%emt 0:01:08]} Qxf6 {[%emt 0:00:04]} 10. Nd5 {[%emt 0:00:15]} Qd8 {[%emt 0:00:06]} 11. Qd3 {[%emt 0:00:09]} Nd7 {[%emt 0:01:40]} 12. O-O-O {[%emt 0:01:23]} g6 {[%emt 0:00:50]} 13. Kb1 {[%emt 0:07:57]} Bh6 {[%emt 0:02:04]} 14. c3 {[%emt 0:00:17]} O-O {[%emt 0:02:40]} 15. g4 {[%emt 0:00:17]} h4 {[%emt 0:00:14]} 16. f4 {[%emt 0:00:06]} Nc5 {[%emt 0:10:04]} 17. Qf3 {[%emt 0:03:10]} Bxd5 {[%emt 0:08:52]} 18. Rxd5 {[%emt 0:02:54]} Bxf4 {[%emt 0:03:37]} 19. Nxf4 {[%emt 0:00:21]} Qf6 {[%emt 0:00:12]} 20. Bg2 {[%emt 0:01:55]} Qxf4 {[%emt 0:00:35]} 21. Qxf4 {[%emt 0:03:17]} exf4 {[%emt 0:00:03]} 22. e5 {[%emt 0:00:01]} Rad8 {[%emt 0:08:42]} 23. exd6 {[%emt 0:01:13]} Ne6 {[%emt 0:01:24]} 24. d7 {[%emt 0:01:20]} Rb8 {[%emt 0:03:22]} 25. Rd6 {[%emt 0:03:39]} Rfd8 {[%emt 0:00:59]} 26. Bd5 {[%emt 0:00:42]} Nf8 {[%emt 0:00:24]} 27. Re1 {[%emt 0:08:17]} Rxd7 {[%emt 0:00:33]} 28. Rxd7 {[%emt 0:00:16]} Nxd7 {[%emt 0:00:08]} 29. Re7 {[%emt 0:00:14]} Nf6 {[%emt 0:01:16]} 30. Bxf7+ {[%emt 0:00:42]} Kf8 {[%emt 0:00:00]} 31. Rc7 {[%emt 0:00:00]} Ne8 {[%emt 0:01:31]} 32. Rd7 {[%emt 0:02:12]} Nf6 {[%emt 0:00:02]} 33. Rc7 {[%emt 0:00:13]} Ne8 {[%emt 0:01:49]} 34. Rd7 {[%emt 0:07:51]} 1/2-1/2

[Event "IIFL Wealth 4th Mumbai Open"]
[Site "Mumbai"]
[Date "2019.01.04"]
[Round "6"]
[White "Tanuj, Dayal"]
[Black "Jain Adi"]
[Result "1-0"]
[ECO "C95"]
[WhiteElo "1803"]
[BlackElo "1545"]
[Annotator "NA"]
[PlyCount "159"]
[EventDate "2018.12.30"]
[EventType "swiss"]
[EventCountry "IND"]
[SourceTitle "playchess.com"]
[Source "ChessBase"]
[SourceQuality "1"]
[TimeControl "40/5400+30:1800+30"]

1. e4 e5 2. Nf3 Nc6 3. Bb5 a6 4. Ba4 Nf6 5. O-O b5 6. Bb3 Be7 7. Re1 O-O 8. c3 d6 9. h3 Nb8 10. d4 Nbd7 11. Nbd2 Bb7 12. Bc2 Re8 13. b3 Bf8 14. Bb2 g6 15. Bd3 Bg7 16. a4 c6 17. Qc2 Rc8 18. c4 exd4 19. Bxd4 c5 20. Bb2 b4 21. Nf1 Nh5 22. Bxg7 Nxg7 23. Ne3 a5 24. Nd5 Ne5 25. Nxe5 dxe5 26. Be2 Ne6 27. Bg4 Qg5 28. Rad1 Rcd8 29. Bxe6 Rxe6 30. Qd3 Red6 31. Qf3 Bxd5 32. cxd5 Rc8 33. Rc1 Qe7 34. Qe3 Qc7 35. Rc4 f5 36. exf5 Rxd5 37. fxg6 hxg6 38. Rg4 Qf7 39. Qg3 Kg7 40. Rxe5 Rcd8 41. Re3 Rf5 42. Rge4 Rd1+ 43. Kh2 Rd7 44. Qh4 g5 45. Qg4 Kh7 46. f3 Rb7 47. Re6 Qc7+ 48. Kh1 Qf7 49. Qe4 Kg7 50. g4 Rf6 51. Rxf6 Kxf6 52. Qf5+ Kg7 53. Qxg5+ Qg6 54. Qxc5 Rd7 55. Re7+ Rxe7 56. Qxe7+ Kh8 57. Qe5+ Kg8 58. Qd5+ Kg7 59. Qd4+ Kg8 60. Qc4+ Kg7 61. Kg2 Qg5 62. Qc7+ Kg8 63. Kg3 Qd5 64. Qc2 Qe5+ 65. Kg2 Qc3 66. Qg6+ Kh8 67. Qe8+ Kg7 68. Qe7+ Kh8 69. Qd8+ Kg7 70. Qd5 Qc2+ 71. Kg3 Kh6 72. Kf4 Qc1+ 73. Kf5 Qc2+ 74. Ke5 Qc3+ 75. Kd6 Kh7 76. h4 Qf6+ 77. Kc5 Qc3+ 78. Kb5 Qc7 79. h5 Kh6 80. Qc6+ 1-0

[Event "IIFL Wealth 4th Mumbai Open"]
[Site "Mumbai"]
[Date "2019.01.04"]
[Round "6"]
[White "Devesh, Anand Naik"]
[Black "Amrit, Raunak"]
[Result "1-0"]
[ECO "C70"]
[WhiteElo "1763"]
[BlackElo "1410"]
[Annotator "NA"]
[PlyCount "73"]
[EventDate "2018.12.30"]
[EventType "swiss"]
[EventCountry "IND"]
[SourceTitle "playchess.com"]
[Source "ChessBase"]
[SourceQuality "1"]
[TimeControl "40/5400+30:1800+30"]

1. e4 e5 2. Nf3 Nc6 3. Bb5 a6 4. Ba4 b5 5. Bb3 Nf6 6. d3 h6 7. O-O Bc5 8. c3 d6 9. h3 O-O 10. Re1 Bb7 11. Nbd2 Ne7 12. d4 exd4 13. cxd4 Bb4 14. Bc2 Ng6 15. a3 Bxd2 16. Bxd2 Re8 17. d5 Ne5 18. Bc3 Ng6 19. Nd4 Nd7 20. Qd2 Nde5 21. f4 Nc4 22. Qf2 Qd7 23. Qg3 Qe7 24. Nf5 Qd8 25. Bxg7 Kh7 26. Qg4 Nxf4 27. Qxf4 Qg5 28. Qxg5 hxg5 29. Bc3 Kg8 30. Rf1 Bc8 31. Nh6+ Kh7 32. Nxf7 Ne3 33. Rf2 Kg6 34. Rf6+ Kh7 35. Rh6+ Kg8 36. Nxg5 Kf8 37. Bf6 1-0

[Event "IIFL Wealth 4th Mumbai Open"]
[Site "Mumbai"]
[Date "2019.01.04"]
[Round "6"]
[White "Sadbhav, Rautela"]
[Black "Bajaj Prakhar"]
[Result "1/2-1/2"]
[ECO "B41"]
[WhiteElo "1746"]
[BlackElo "1584"]
[Annotator "NA"]
[PlyCount "110"]
[EventDate "2018.12.30"]
[EventType "swiss"]
[EventCountry "IND"]
[SourceTitle "playchess.com"]
[Source "ChessBase"]
[SourceQuality "1"]
[TimeControl "40/5400+30:1800+30"]

1. e4 {[%emt 0:00:00]} c5 {[%emt 0:00:00]} 2. Nf3 {[%emt 0:00:00]} e6 {[%emt 0:00:00]} 3. d4 {[%emt 0:00:00]} cxd4 {[%emt 0:00:00]} 4. Nxd4 {[%emt 0:00:00]} a6 {[%emt 0:00:00]} 5. c4 {[%emt 0:00:00]} Nf6 {[%emt 0:00:00]} 6. Nc3 {[%emt 0:00:17]} Bb4 {[%emt 0:00:12]} 7. Qd3 {[%emt 0:00:38]} d6 {[%emt 0:00:20]} 8. Be2 {[%emt 0:03:22]} Nbd7 {[%emt 0:01:07]} 9. f3 {[%emt 0:02:49]} Ne5 {[%emt 0:14:15]} 10. Qc2 {[%emt 0:03:13]} Bc5 {[%emt 0:00:15]} 11. Nb3 {[%emt 0:02:17]} Ba7 {[%emt 0:00:25]} 12. Bg5 {[%emt 0:01:03]} h6 {[%emt 0:01:12]} 13. Bf4 {[%emt 0:10:52]} Ng6 {[%emt 0:00:21]} 14. Bd2 {[%emt 0:00:18]} Bd7 {[%emt 0:02:40]} 15. O-O-O {[%emt 0:01:35]} Rc8 {[%emt 0:01:21]} 16. Kb1 {[%emt 0:26:33]} b5 {[%emt 0:06:15]} 17. Bc1 {[%emt 0:28:31]} b4 {[%emt 0:02:26]} 18. Rxd6 {[%emt 0:02:02]} bxc3 {[%emt 0:00:16]} 19. Qxc3 {[%emt 0:00:25]} Qc7 {[%emt 0:01:47]} 20. Rxa6 e5 {[%emt 0:01:05]} 21. Rd1 {[%emt 0:08:46]} O-O {[%emt 0:02:37]} 22. Rad6 {[%emt 0:01:56]} Be6 {[%emt 0:02:15]} 23. Qa5 {[%emt 0:04:02]} Qb7 {[%emt 0:05:44]} 24. Ra6 {[%emt 0:02:26]} Ra8 {[%emt 0:01:30]} 25. Nc5 {[%emt 0:00:40]} Bxc5 {[%emt 0:00:27]} 26. Rxa8 {[%emt 0:00:02]} Rxa8 {[%emt 0:00:29]} 27. Qxc5 {[%emt 0:00:06]} Qa6 {[%emt 0:01:05]} 28. a3 {[%emt 0:00:47]} Rc8 {[%emt 0:00:57]} 29. Qb5 {[%emt 0:00:12]} Qa7 {[%emt 0:00:46]} 30. Qb4 {[%emt 0:01:36]} Rb8 {[%emt 0:02:05]} 31. Qc3 {[%emt 0:00:16]} Qa4 {[%emt 0:00:14]} 32. Ka2 {[%emt 0:00:36]} Rc8 {[%emt 0:02:40]} 33. b3 {[%emt 0:00:10]} Qc6 {[%emt 0:00:01]} 34. Be3 {[%emt 0:00:28]} Nd7 {[%emt 0:00:34]} 35. Qd2 {[%emt 0:00:47]} Nc5 {[%emt 0:00:51]} 36. Qd6 {[%emt 0:00:04]} Qxd6 {[%emt 0:05:58]} 37. Rxd6 {[%emt 0:00:01]} Nf4 {[%emt 0:03:28]} 38. Bxf4 {[%emt 0:01:17]} exf4 {[%emt 0:00:02]} 39. Kb2 {[%emt 0:00:46]} Nd7 {[%emt 0:01:25]} 40. Kc3 {[%emt 0:00:00]} Ne5 {[%emt 0:00:00]} 41. Rb6 {[%emt 0:14:11]} g5 {[%emt 0:05:52]} 42. a4 {[%emt 0:03:37]} h5 {[%emt 0:00:55]} 43. a5 {[%emt 0:01:08]} g4 {[%emt 0:00:39]} 44. a6 {[%emt 0:00:45]} Nc6 {[%emt 0:02:24]} 45. Rb5 {[%emt 0:01:35]} Ra8 {[%emt 0:01:33]} 46. fxg4 {[%emt 0:00:49]} hxg4 {[%emt 0:00:40]} 47. Bxg4 {[%emt 0:00:07]} Rxa6 {[%emt 0:00:15]} 48. Bf3 {[%emt 0:02:34]} f6 {[%emt 0:00:47]} 49. Kb2 {[%emt 0:05:14]} Ne5 {[%emt 0:00:47]} 50. c5 {[%emt 0:03:30]} Kg7 {[%emt 0:02:07]} 51. Be2 {[%emt 0:00:47]} Kg6 {[%emt 0:02:43]} 52. Rb7 {[%emt 0:01:56]} Rc6 {[%emt 0:00:21]} 53. b4 Bg4 54. Bb5 Rc8 55. Be2 Rc6 1/2-1/2

[Event "IIFL Wealth 4th Mumbai Open"]
[Site "Mumbai"]
[Date "2019.01.04"]
[Round "6"]
[White "Pawar, Harshit"]
[Black "Iyer Vivek"]
[Result "1-0"]
[ECO "C00"]
[WhiteElo "1719"]
[BlackElo "1379"]
[Annotator "NA"]
[PlyCount "71"]
[EventDate "2018.12.30"]
[EventType "swiss"]
[EventCountry "IND"]
[SourceTitle "playchess.com"]
[Source "ChessBase"]
[SourceQuality "1"]
[TimeControl "40/5400+30:1800+30"]

1. e4 {[%emt 0:00:00]} e6 {[%emt 0:00:00]} 2. Nf3 {[%emt 0:00:00]} d5 {[%emt 0:00:05]} 3. e5 {[%emt 0:01:16]} c5 {[%emt 0:00:57]} 4. b4 {[%emt 0:03:00]} cxb4 {[%emt 0:01:36]} 5. d4 {[%emt 0:01:06]} Nc6 {[%emt 0:01:14]} 6. a3 {[%emt 0:01:07]} Bd7 {[%emt 0:03:03]} 7. axb4 {[%emt 0:00:13]} Bxb4+ {[%emt 0:00:44]} 8. c3 {[%emt 0:01:39]} Be7 {[%emt 0:01:23]} 9. Bd3 {[%emt 0:01:40]} f5 {[%emt 0:02:07]} 10. O-O {[%emt 0:02:07]} g5 {[%emt 0:02:38]} 11. Nxg5 {[%emt 0:05:11]} Bxg5 {[%emt 0:02:29]} 12. Qh5+ {[%emt 0:00:06]} Kf8 {[%emt 0:00:12]} 13. Bxg5 {[%emt 0:00:27]} Qe8 {[%emt 0:00:41]} 14. Qd1 {[%emt 0:12:32]} Qg6 {[%emt 0:03:19]} 15. Bc1 {[%emt 0:01:03]} Nge7 {[%emt 0:00:45]} 16. Be2 {[%emt 0:01:20]} h5 {[%emt 0:00:36]} 17. h4 {[%emt 0:00:44]} Nd8 {[%emt 0:05:53]} 18. g3 {[%emt 0:04:31]} Nf7 {[%emt 0:00:49]} 19. Na3 {[%emt 0:00:49]} a6 {[%emt 0:02:14]} 20. Nc2 {[%emt 0:00:56]} Kg7 {[%emt 0:02:27]} 21. Ne1 {[%emt 0:00:39]} Rac8 {[%emt 0:02:01]} 22. Ra3 {[%emt 0:02:09]} Qh7 {[%emt 0:11:24]} 23. Nd3 {[%emt 0:02:19]} Be8 {[%emt 0:05:33]} 24. Nc5 {[%emt 0:03:38]} Nd8 {[%emt 0:00:24]} 25. Bg5 {[%emt 0:00:13]} Kf8 {[%emt 0:03:17]} 26. Qb3 {[%emt 0:06:21]} Nec6 {[%emt 0:00:58]} 27. Rb1 {[%emt 0:05:23]} Rc7 {[%emt 0:05:11]} 28. Qb6 {[%emt 0:00:55]} Rg8 {[%emt 0:01:25]} 29. Bxd8 {[%emt 0:03:26]} Nxd8 {[%emt 0:01:55]} 30. Nxe6+ {[%emt 0:00:56]} Nxe6 {[%emt 0:00:24]} 31. Qxe6 {[%emt 0:00:14]} Qf7 {[%emt 0:01:57]} 32. Qh6+ {[%emt 0:01:40]} Rg7 {[%emt 0:02:36]} 33. Rb6 {[%emt 0:01:43]} Kg8 {[%emt 0:03:32]} 34. Rf6 {[%emt 0:01:07]} Rg6 {[%emt 0:01:43]} 35. Rxf7 {[%emt 0:00:39]} Rxh6 {[%emt 0:02:04]} 36. Rxc7 {[%emt 0:00:09]} 1-0

[Event "IIFL Wealth 4th Mumbai Open"]
[Site "Mumbai"]
[Date "2019.01.04"]
[Round "6"]
[White "Dhanashree, Pandit"]
[Black "Vinod, Chaturvedi"]
[Result "1-0"]
[ECO "D11"]
[WhiteElo "1676"]
[BlackElo "1387"]
[Annotator "NA"]
[PlyCount "78"]
[EventDate "2018.12.30"]
[EventType "swiss"]
[EventCountry "IND"]
[SourceTitle "playchess.com"]
[Source "ChessBase"]
[SourceQuality "1"]
[TimeControl "40/5400+30:1800+30"]

1. d4 d5 2. c4 c6 3. Nf3 Nf6 4. Qc2 Bg4 5. Ne5 Bh5 6. cxd5 cxd5 7. Qa4+ Nfd7 8. Nc3 e6 9. Bf4 f6 10. Nxd7 Qxd7 11. Qxd7+ Nxd7 12. Nb5 Bb4+ 13. Bd2 Bxd2+ 14. Kxd2 Ke7 15. e3 a6 16. Nc3 f5 17. Bd3 Rhc8 18. Rhc1 Be8 19. Na4 b5 20. Nc5 Nxc5 21. dxc5 Bc6 22. b4 g6 23. g3 e5 24. Bc2 Rc7 25. a4 Rd8 26. axb5 axb5 27. Ke2 d4 28. Rd1 Bd5 29. exd4 Bc4+ 30. Ke3 exd4+ 31. Rxd4 Rxd4 32. Kxd4 Rd7+ 33. Kc3 Kf6 34. f4 Re7 35. Ra6+ Kg7 36. Rd6 Rc7 37. Bd1 Bf7 38. Be2 Be8 39. Rb6 Rd7 1-0